[Event "Late-Titled-Tuesday-Blitz-June-25-2024"]
[Site "Chess.com"]
[Date "2024.06.25"]
[Round "3"]
[White "Cxrjs"]
[Black "guineo59"]
[Result "1/2-1/2"]
[WhiteElo "2521"]
[BlackElo "2212"]
[TimeControl "180+1"]
[EndTime "14:29:01 PDT"]
[Termination "Game drawn - insufficient material"]

1. e4 {[%clk 0:03:00.9]} 1... e6 {[%clk 0:02:59.5]} 2. d4 {[%clk 0:03:00]} 2...
d5 {[%clk 0:02:59.5]} 3. Nc3 {[%clk 0:03:00.1]} 3... Bb4 {[%clk 0:02:59]} 4. e5
{[%clk 0:03:00.1]} 4... c5 {[%clk 0:02:58.2]} 5. a3 {[%clk 0:03:00.3]} 5...
Bxc3+ {[%clk 0:02:58.3]} 6. bxc3 {[%clk 0:03:01.2]} 6... Ne7 {[%clk 0:02:58.5]}
7. Qg4 {[%clk 0:03:01.3]} 7... Kf8 {[%clk 0:02:58.3]} 8. h4 {[%clk 0:02:59.3]}
8... Qa5 {[%clk 0:02:58.4]} 9. Bd2 {[%clk 0:02:50.2]} 9... Qa4 {[%clk
0:02:58.2]} 10. h5 {[%clk 0:02:41.4]} 10... h6 {[%clk 0:02:58]} 11. Qf4 {[%clk
0:02:19.2]} 11... Qxc2 {[%clk 0:02:35.2]} 12. dxc5 {[%clk 0:02:12.9]} 12... Nbc6
{[%clk 0:02:32.1]} 13. Nf3 {[%clk 0:02:11.8]} 13... Qe4+ {[%clk 0:02:26.7]} 14.
Be2 {[%clk 0:02:09.2]} 14... b6 {[%clk 0:02:13.2]} 15. cxb6 {[%clk 0:02:01.8]}
15... axb6 {[%clk 0:02:14.1]} 16. Rh4 {[%clk 0:01:43.7]} 16... Qxf4 {[%clk
0:02:01.3]} 17. Rxf4 {[%clk 0:01:41]} 17... Ba6 {[%clk 0:01:57.1]} 18. c4 {[%clk
0:01:38.3]} 18... Ke8 {[%clk 0:01:38.7]} 19. Rb1 {[%clk 0:01:25.1]} 19... Bxc4
{[%clk 0:01:30]} 20. Bxc4 {[%clk 0:01:25.1]} 20... dxc4 {[%clk 0:01:29.6]} 21.
Rxc4 {[%clk 0:01:17.9]} 21... Kd7 {[%clk 0:01:02.7]} 22. Rxb6 {[%clk 0:01:11]}
22... Rhb8 {[%clk 0:00:59.4]} 23. Rxb8 {[%clk 0:01:07.6]} 23... Rxb8 {[%clk
0:01:00.3]} 24. Rf4 {[%clk 0:01:08]} 24... Rb1+ {[%clk 0:00:50.2]} 25. Ke2
{[%clk 0:01:06.5]} 25... Ke8 {[%clk 0:00:41.9]} 26. Rg4 {[%clk 0:00:57.7]} 26...
Nf5 {[%clk 0:00:37.7]} 27. Rc4 {[%clk 0:00:56.7]} 27... Kd7 {[%clk 0:00:37.2]}
28. g4 {[%clk 0:00:53.3]} 28... Nfe7 {[%clk 0:00:36.4]} 29. a4 {[%clk
0:00:38.9]} 29... Ra1 {[%clk 0:00:35.5]} 30. Bc3 {[%clk 0:00:27.4]} 30... Ra2+
{[%clk 0:00:33.4]} 31. Kf1 {[%clk 0:00:26.6]} 31... Nd5 {[%clk 0:00:34.3]} 32.
Bd4 {[%clk 0:00:23]} 32... Ra3 {[%clk 0:00:25.4]} 33. Nd2 {[%clk 0:00:16.7]}
33... Rd3 {[%clk 0:00:20.4]} 34. Ne4 {[%clk 0:00:14.9]} 34... Rxd4 {[%clk
0:00:19.8]} 35. Nc5+ {[%clk 0:00:14.9]} 35... Kc7 {[%clk 0:00:18.3]} 36. Rc1
{[%clk 0:00:10.6]} 36... Kb6 {[%clk 0:00:17.8]} 37. a5+ {[%clk 0:00:09.1]} 37...
Kb5 {[%clk 0:00:17.7]} 38. a6 {[%clk 0:00:08.1]} 38... Rc4 {[%clk 0:00:17.8]}
39. a7 {[%clk 0:00:05.8]} 39... Nxa7 {[%clk 0:00:17.6]} 40. Ra1 {[%clk
0:00:04.9]} 40... Nc6 {[%clk 0:00:16.7]} 41. Nd7 {[%clk 0:00:04]} 41... Rxg4
{[%clk 0:00:16.7]} 42. Rb1+ {[%clk 0:00:03.3]} 42... Ncb4 {[%clk 0:00:16.8]} 43.
Rc1 {[%clk 0:00:02.8]} 43... Rg5 {[%clk 0:00:16.1]} 44. Rc5+ {[%clk 0:00:03.2]}
44... Ka6 {[%clk 0:00:15.4]} 45. Rc8 {[%clk 0:00:03.6]} 45... Rxh5 {[%clk
0:00:15]} 46. Rf8 {[%clk 0:00:03.5]} 46... f6 {[%clk 0:00:13.2]} 47. exf6 {[%clk
0:00:02.9]} 47... Nxf6 {[%clk 0:00:13.3]} 48. Nxf6 {[%clk 0:00:02.9]} 48... gxf6
{[%clk 0:00:13.2]} 49. Rxf6 {[%clk 0:00:03.8]} 49... Kb5 {[%clk 0:00:10.9]} 50.
Rxe6 {[%clk 0:00:04]} 50... Nd5 {[%clk 0:00:11.5]} 51. Rd6 {[%clk 0:00:01.9]}
51... Kc5 {[%clk 0:00:11.7]} 52. Rd8 {[%clk 0:00:02.4]} 52... Kd4 {[%clk
0:00:11.6]} 53. Ke2 {[%clk 0:00:02.1]} 53... Re5+ {[%clk 0:00:11]} 54. Kd2
{[%clk 0:00:02.4]} 54... h5 {[%clk 0:00:11.9]} 55. Kc2 {[%clk 0:00:01.4]} 55...
Rf5 {[%clk 0:00:11.9]} 56. f3 {[%clk 0:00:01.2]} 56... Rxf3 {[%clk 0:00:11.8]}
57. Rh8 {[%clk 0:00:02.1]} 57... Rf2+ {[%clk 0:00:12.1]} 58. Kd1 {[%clk
0:00:02.5]} 58... Rf5 {[%clk 0:00:13]} 59. Ke2 {[%clk 0:00:02.6]} 59... Re5+
{[%clk 0:00:13]} 60. Kf3 {[%clk 0:00:02.7]} 60... Rf5+ {[%clk 0:00:13]} 61. Kg3
{[%clk 0:00:03.1]} 61... Ne3 {[%clk 0:00:12.9]} 62. Kh4 {[%clk 0:00:02.8]} 62...
Ng2+ {[%clk 0:00:10]} 63. Kg3 {[%clk 0:00:03.1]} 63... Ne1 {[%clk 0:00:09.9]}
64. Kh4 {[%clk 0:00:03.2]} 64... Nf3+ {[%clk 0:00:10.3]} 65. Kg3 {[%clk
0:00:03.6]} 65... Ke4 {[%clk 0:00:10.5]} 66. Re8+ {[%clk 0:00:02.5]} 66... Ne5
{[%clk 0:00:11.4]} 67. Rh8 {[%clk 0:00:02.6]} 67... Rf3+ {[%clk 0:00:11.3]} 68.
Kh4 {[%clk 0:00:03]} 68... Rf5 {[%clk 0:00:12.1]} 69. Rxh5 {[%clk 0:00:02.9]}
69... Nf3+ {[%clk 0:00:13]} 70. Kg4 {[%clk 0:00:03]} 70... Ne5+ {[%clk 0:00:12]}
71. Kh4 {[%clk 0:00:03.4]} 71... Ng6+ {[%clk 0:00:11.4]} 72. Kg4 {[%clk
0:00:03.4]} 72... Rxh5 {[%clk 0:00:11.5]} 73. Kxh5 {[%clk 0:00:03.6]} 1/2-1/2

[Event "Late-Titled-Tuesday-Blitz-June-25-2024"]
[Site "Chess.com"]
[Date "2024.06.25"]
[Round "3"]
[White "WPWPWP-2015"]
[Black "AlexKhripachenko"]
[Result "1/2-1/2"]
[WhiteElo "2558"]
[BlackElo "2814"]
[TimeControl "180+1"]
[EndTime "14:29:08 PDT"]
[Termination "Game drawn by repetition"]

1. e4 {[%clk 0:02:59.7]} 1... c5 {[%clk 0:02:57.9]} 2. Nf3 {[%clk 0:02:55.8]}
2... e6 {[%clk 0:02:58.2]} 3. b3 {[%clk 0:02:53.1]} 3... Nc6 {[%clk 0:02:57.6]}
4. Bb5 {[%clk 0:02:52.3]} 4... Nge7 {[%clk 0:02:52.9]} 5. Bb2 {[%clk 0:02:51.6]}
5... a6 {[%clk 0:02:53.5]} 6. Bxc6 {[%clk 0:02:50.8]} 6... Nxc6 {[%clk
0:02:54.4]} 7. O-O {[%clk 0:02:50.9]} 7... d5 {[%clk 0:02:48.2]} 8. exd5 {[%clk
0:02:45.5]} 8... Qxd5 {[%clk 0:02:49.1]} 9. Nc3 {[%clk 0:02:43]} 9... Qh5 {[%clk
0:02:43.6]} 10. Re1 {[%clk 0:02:38.5]} 10... Be7 {[%clk 0:02:39.5]} 11. Ne4
{[%clk 0:02:37.8]} 11... O-O {[%clk 0:02:39.6]} 12. Ng3 {[%clk 0:02:37]} 12...
Qd5 {[%clk 0:02:37.4]} 13. h3 {[%clk 0:02:24.9]} 13... b5 {[%clk 0:02:35]} 14.
d3 {[%clk 0:02:22.9]} 14... Bb7 {[%clk 0:02:35.2]} 15. Qe2 {[%clk 0:02:22]}
15... Rad8 {[%clk 0:02:35]} 16. Ne4 {[%clk 0:02:19.3]} 16... Rfe8 {[%clk
0:02:31.6]} 17. a4 {[%clk 0:02:16.6]} 17... h6 {[%clk 0:02:17.3]} 18. axb5
{[%clk 0:02:08.2]} 18... axb5 {[%clk 0:02:18.2]} 19. Nc3 {[%clk 0:02:08.1]}
19... Nd4 {[%clk 0:02:11.8]} 20. Nxd5 {[%clk 0:01:54.5]} 20... Nxe2+ {[%clk
0:02:11.4]} 21. Rxe2 {[%clk 0:01:54.6]} 21... Bxd5 {[%clk 0:02:11.6]} 22. Nd2
{[%clk 0:01:47.3]} 22... Ra8 {[%clk 0:02:09.2]} 23. Ree1 {[%clk 0:01:46.8]}
23... Bc6 {[%clk 0:01:55.4]} 24. Rxa8 {[%clk 0:01:36.8]} 24... Rxa8 {[%clk
0:01:56.3]} 25. Ra1 {[%clk 0:01:36.7]} 25... f6 {[%clk 0:01:53.6]} 26. Kf1
{[%clk 0:01:35.5]} 26... Rxa1+ {[%clk 0:01:52]} 27. Bxa1 {[%clk 0:01:35.4]}
27... e5 {[%clk 0:01:52.9]} 28. f3 {[%clk 0:01:33.5]} 28... Kf7 {[%clk
0:01:53.4]} 29. Bc3 {[%clk 0:01:31.1]} 29... Ke6 {[%clk 0:01:53.6]} 30. Ke2
{[%clk 0:01:30.1]} 30... f5 {[%clk 0:01:53.6]} 31. Bb2 {[%clk 0:01:28.8]} 31...
h5 {[%clk 0:01:53.9]} 32. c4 {[%clk 0:01:28]} 32... b4 {[%clk 0:01:52.9]} 33.
Nf1 {[%clk 0:01:26.2]} 33... Bg5 {[%clk 0:01:50.6]} 34. Ne3 {[%clk 0:01:25]}
34... g6 {[%clk 0:01:50.7]} 35. Bc1 {[%clk 0:01:23.6]} 35... e4 {[%clk
0:01:49.6]} 36. Bd2 {[%clk 0:01:21.8]} 36... exf3+ {[%clk 0:01:47.2]} 37. gxf3
{[%clk 0:01:21.4]} 37... Bf4 {[%clk 0:01:37.2]} 38. Be1 {[%clk 0:01:18.1]} 38...
g5 {[%clk 0:01:35]} 39. Bf2 {[%clk 0:01:15.8]} 39... Bd6 {[%clk 0:01:29.2]} 40.
Nc2 {[%clk 0:01:13.2]} 40... g4 {[%clk 0:01:29.4]} 41. fxg4 {[%clk 0:01:12.3]}
41... fxg4 {[%clk 0:01:30.3]} 42. hxg4 {[%clk 0:01:12.2]} 42... hxg4 {[%clk
0:01:31.2]} 43. d4 {[%clk 0:01:09.4]} 43... Bf3+ {[%clk 0:01:31.7]} 44. Kd3
{[%clk 0:00:58.7]} 44... g3 {[%clk 0:01:32]} 45. Bg1 {[%clk 0:00:55.2]} 45...
Bh5 {[%clk 0:00:48.8]} 46. dxc5 {[%clk 0:00:54.4]} 46... Bg6+ {[%clk 0:00:49.3]}
47. Kd2 {[%clk 0:00:52.5]} 47... Bf4+ {[%clk 0:00:49.4]} 48. Kd1 {[%clk
0:00:47.2]} 48... Kd7 {[%clk 0:00:36.8]} 49. Nxb4 {[%clk 0:00:44]} 49... Bh5+
{[%clk 0:00:32.3]} 50. Ke1 {[%clk 0:00:42.3]} 50... Be5 {[%clk 0:00:28.9]} 51.
Nd5 {[%clk 0:00:41.7]} 51... Bg6 {[%clk 0:00:21.8]} 52. Kd2 {[%clk 0:00:40.1]}
52... Bg7 {[%clk 0:00:19.2]} 53. b4 {[%clk 0:00:36.8]} 53... Bh6+ {[%clk
0:00:19.8]} 54. Ne3 {[%clk 0:00:32.7]} 54... Kc6 {[%clk 0:00:19.4]} 55. Kc3
{[%clk 0:00:29.9]} 55... Bg7+ {[%clk 0:00:19.4]} 56. Kb3 {[%clk 0:00:28.7]}
56... Bd4 {[%clk 0:00:19.6]} 57. Ka4 {[%clk 0:00:18]} 57... Bd3 {[%clk
0:00:20.1]} 58. Kb3 {[%clk 0:00:09.3]} 58... Be2 {[%clk 0:00:20]} 59. Ka4 {[%clk
0:00:07.2]} 59... Bxc4 {[%clk 0:00:18.6]} 60. Nxc4 {[%clk 0:00:04]} 60... Bxg1
{[%clk 0:00:19.3]} 61. Ne5+ {[%clk 0:00:04.3]} 61... Kd5 {[%clk 0:00:19.8]} 62.
Nf3 {[%clk 0:00:04.5]} 62... Be3 {[%clk 0:00:20.4]} 63. Kb5 {[%clk 0:00:04.4]}
63... Ke4 {[%clk 0:00:11.9]} 64. Ne1 {[%clk 0:00:03.2]} 64... Bf2 {[%clk
0:00:08.9]} 65. Ng2 {[%clk 0:00:03.2]} 65... Kd5 {[%clk 0:00:06.4]} 66. c6
{[%clk 0:00:03.1]} 66... Kd6 {[%clk 0:00:06.3]} 67. Nh4 {[%clk 0:00:02.5]} 67...
Bd4 {[%clk 0:00:05.8]} 68. Ng2 {[%clk 0:00:02.7]} 68... Bf2 {[%clk 0:00:06.4]}
69. Nf4 {[%clk 0:00:02.9]} 69... Be3 {[%clk 0:00:06.1]} 70. Ng2 {[%clk
0:00:03.3]} 70... Bf2 {[%clk 0:00:06.6]} 1/2-1/2

[Event "Late-Titled-Tuesday-Blitz-June-25-2024"]
[Site "Chess.com"]
[Date "2024.06.25"]
[Round "3"]
[White "Road2GM3000"]
[Black "Arystanner"]
[Result "0-1"]
[WhiteElo "2504"]
[BlackElo "2808"]
[TimeControl "180+1"]
[EndTime "14:29:13 PDT"]
[Termination "Arystanner won on time"]

1. d4 {[%clk 0:03:00.9]} 1... Nf6 {[%clk 0:02:57]} 2. c4 {[%clk 0:03:00.9]} 2...
g6 {[%clk 0:02:57.9]} 3. Nc3 {[%clk 0:03:00.7]} 3... Bg7 {[%clk 0:02:58.1]} 4.
e4 {[%clk 0:03:01.1]} 4... d6 {[%clk 0:02:58.6]} 5. f4 {[%clk 0:03:01.6]} 5...
O-O {[%clk 0:02:59.1]} 6. Nf3 {[%clk 0:03:01.9]} 6... c5 {[%clk 0:02:59.2]} 7.
d5 {[%clk 0:03:01.7]} 7... b5 {[%clk 0:02:59.8]} 8. cxb5 {[%clk 0:03:01.1]} 8...
a6 {[%clk 0:03:00.5]} 9. a4 {[%clk 0:03:01.4]} 9... Qa5 {[%clk 0:03:00.5]} 10.
Bd2 {[%clk 0:03:01.5]} 10... Qb4 {[%clk 0:02:55.9]} 11. Qc2 {[%clk 0:03:01.5]}
11... axb5 {[%clk 0:02:51.9]} 12. Bxb5 {[%clk 0:02:57.2]} 12... c4 {[%clk
0:02:41]} 13. O-O {[%clk 0:02:42.5]} 13... Qc5+ {[%clk 0:02:39.4]} 14. Kh1
{[%clk 0:02:40.2]} 14... Ng4 {[%clk 0:02:37.8]} 15. Nd1 {[%clk 0:02:35.2]} 15...
Ba6 {[%clk 0:02:30.1]} 16. Bxa6 {[%clk 0:02:32.4]} 16... Nxa6 {[%clk 0:02:30.7]}
17. h3 {[%clk 0:02:32.8]} 17... Nf6 {[%clk 0:02:31.1]} 18. Ne3 {[%clk
0:02:22.3]} 18... Rfc8 {[%clk 0:02:27.8]} 19. Rfc1 {[%clk 0:02:20.6]} 19... Nb4
{[%clk 0:02:18.4]} 20. Bxb4 {[%clk 0:02:20.3]} 20... Qxe3 {[%clk 0:02:18.7]} 21.
e5 {[%clk 0:02:14]} 21... Nxd5 {[%clk 0:02:18.1]} 22. Bd2 {[%clk 0:02:11.8]}
22... Qf2 {[%clk 0:02:06.7]} 23. exd6 {[%clk 0:02:05]} 23... exd6 {[%clk
0:02:02.7]} 24. f5 {[%clk 0:02:00.1]} 24... Rab8 {[%clk 0:01:54.7]} 25. Bc3
{[%clk 0:01:59.2]} 25... Qxc2 {[%clk 0:01:46.3]} 26. Rxc2 {[%clk 0:02:00.1]}
26... Bxc3 {[%clk 0:01:44.2]} 27. bxc3 {[%clk 0:02:01]} 27... Ne3 {[%clk
0:01:44.8]} 28. Rd2 {[%clk 0:01:46]} 28... Nxf5 {[%clk 0:01:45]} 29. Nd4 {[%clk
0:01:46.2]} 29... Ng3+ {[%clk 0:01:44.4]} 30. Kh2 {[%clk 0:01:45.5]} 30... Ne4
{[%clk 0:01:45.3]} 31. Rc2 {[%clk 0:01:41.9]} 31... Ra8 {[%clk 0:01:40.2]} 32.
a5 {[%clk 0:01:40.2]} 32... Ra6 {[%clk 0:01:40.4]} 33. Ra4 {[%clk 0:01:39.5]}
33... Rc5 {[%clk 0:01:39.5]} 34. Rb4 {[%clk 0:00:39.1]} 34... Raxa5 {[%clk
0:01:35.1]} 35. Rb8+ {[%clk 0:00:38.9]} 35... Kg7 {[%clk 0:01:35.6]} 36. Rb7
{[%clk 0:00:39.5]} 36... Re5 {[%clk 0:01:26]} 37. Re2 {[%clk 0:00:38.8]} 37...
Rac5 {[%clk 0:01:02.2]} 38. Nf3 {[%clk 0:00:35]} 38... Re6 {[%clk 0:00:54.2]}
39. Nd4 {[%clk 0:00:30.8]} 39... Re8 {[%clk 0:00:51.8]} 40. Re3 {[%clk 0:00:30]}
40... Rce5 {[%clk 0:00:44.7]} 41. Nc6 {[%clk 0:00:24.8]} 41... Rf5 {[%clk
0:00:41]} 42. Nd4 {[%clk 0:00:17.5]} 42... Rf6 {[%clk 0:00:41.4]} 43. Rb4 {[%clk
0:00:11.7]} 43... d5 {[%clk 0:00:41.2]} 44. Rb5 {[%clk 0:00:12.2]} 44... Re5
{[%clk 0:00:41.3]} 45. Nf3 {[%clk 0:00:12]} 45... Ref5 {[%clk 0:00:33.4]} 46.
Nd4 {[%clk 0:00:11.8]} 46... Rh5 {[%clk 0:00:33.6]} 47. g4 {[%clk 0:00:10.5]}
47... Re5 {[%clk 0:00:33.5]} 48. Nf3 {[%clk 0:00:10.2]} 48... Ree6 {[%clk
0:00:18]} 49. Rxd5 {[%clk 0:00:10.4]} 49... Nd2 {[%clk 0:00:16.6]} 50. Rxe6
{[%clk 0:00:09]} 50... Nxf3+ {[%clk 0:00:17]} 51. Kg3 {[%clk 0:00:08.3]} 51...
fxe6 {[%clk 0:00:05.5]} 52. Rd7+ {[%clk 0:00:08.5]} 52... Kg8 {[%clk 0:00:05.8]}
53. Rd8+ {[%clk 0:00:07.7]} 53... Kf7 {[%clk 0:00:06.3]} 54. Rd7+ {[%clk
0:00:06.2]} 54... Ke8 {[%clk 0:00:06.9]} 55. Rxh7 {[%clk 0:00:06.9]} 55... Ng5
{[%clk 0:00:07.3]} 56. Rc7 {[%clk 0:00:06.8]} 56... Ne4+ {[%clk 0:00:07.9]} 57.
Kh4 {[%clk 0:00:06.2]} 57... Rf3 {[%clk 0:00:07.3]} 58. Rxc4 {[%clk 0:00:05.2]}
58... g5+ {[%clk 0:00:07.9]} 59. Kh5 {[%clk 0:00:05.3]} 59... Re3 {[%clk
0:00:07]} 60. Rc7 {[%clk 0:00:04.5]} 60... Rxh3+ {[%clk 0:00:06.4]} 61. Kg6
{[%clk 0:00:04.4]} 61... Rxc3 {[%clk 0:00:07.1]} 62. Ra7 {[%clk 0:00:02.5]}
62... Rc4 {[%clk 0:00:07.2]} 63. Rb7 {[%clk 0:00:01.4]} 63... Rc5 {[%clk
0:00:05.9]} 64. Ra7 {[%clk 0:00:01.5]} 64... Nf2 {[%clk 0:00:06.3]} 65. Kf6
{[%clk 0:00:02.1]} 65... Nxg4+ {[%clk 0:00:06.5]} 66. Kxe6 {[%clk 0:00:02.2]}
66... Re5+ {[%clk 0:00:07.2]} 67. Kd6 {[%clk 0:00:01.7]} 67... Re1 {[%clk
0:00:07.1]} 68. Rg7 {[%clk 0:00:02]} 68... Nf6 {[%clk 0:00:07]} 69. Kc6 {[%clk
0:00:01]} 69... g4 {[%clk 0:00:07.3]} 70. Kc5 {[%clk 0:00:01]} 70... Re3 {[%clk
0:00:07.7]} 71. Rg6 {[%clk 0:00:01.1]} 71... Rf3 {[%clk 0:00:08]} 72. Kd4 {[%clk
0:00:01.5]} 72... Kf7 {[%clk 0:00:08.5]} 73. Rg5 {[%clk 0:00:01.6]} 73... g3
{[%clk 0:00:08.8]} 74. Ke5 {[%clk 0:00:01]} 74... Nd7+ {[%clk 0:00:07.8]} 75.
Ke4 {[%clk 0:00:01]} 75... Ra3 {[%clk 0:00:07.6]} 76. Kf4 {[%clk 0:00:01.6]}
76... Nf6 {[%clk 0:00:08.4]} 77. Rxg3 {[%clk 0:00:01.8]} 77... Nh5+ {[%clk
0:00:08.6]} 78. Kg4 {[%clk 0:00:02.7]} 78... Nxg3 {[%clk 0:00:09.5]} 0-1

[Event "Late-Titled-Tuesday-Blitz-June-25-2024"]
[Site "Chess.com"]
[Date "2024.06.25"]
[Round "3"]
[White "Dexter_Dyke"]
[Black "FLYD"]
[Result "0-1"]
[WhiteElo "2511"]
[BlackElo "2153"]
[TimeControl "180+1"]
[EndTime "14:29:44 PDT"]
[Termination "FLYD won on time"]

1. e4 {[%clk 0:03:00]} 1... e5 {[%clk 0:03:00.1]} 2. Nf3 {[%clk 0:02:59.8]} 2...
Nf6 {[%clk 0:03:00.7]} 3. Nxe5 {[%clk 0:02:58.6]} 3... Nc6 {[%clk 0:03:01.3]} 4.
Nxc6 {[%clk 0:02:58.4]} 4... dxc6 {[%clk 0:03:02.2]} 5. e5 {[%clk 0:02:56.7]}
5... Ne4 {[%clk 0:03:02.3]} 6. Nc3 {[%clk 0:02:50.7]} 6... Qd4 {[%clk
0:02:43.2]} 7. Qe2 {[%clk 0:02:47.8]} 7... Bf5 {[%clk 0:02:36]} 8. f3 {[%clk
0:02:42.3]} 8... Nc5 {[%clk 0:02:29]} 9. d3 {[%clk 0:02:39.7]} 9... O-O-O {[%clk
0:02:28.6]} 10. Be3 {[%clk 0:02:38.7]} 10... Qxe5 {[%clk 0:02:20.9]} 11. d4
{[%clk 0:02:38.6]} 11... Rxd4 {[%clk 0:02:21.5]} 12. Bxd4 {[%clk 0:02:38]} 12...
Qxd4 {[%clk 0:02:20.4]} 13. Qe8+ {[%clk 0:02:35.8]} 13... Qd8 {[%clk 0:02:21]}
14. Qxd8+ {[%clk 0:02:36.2]} 14... Kxd8 {[%clk 0:02:21.6]} 15. O-O-O+ {[%clk
0:02:36.5]} 15... Bd6 {[%clk 0:02:21.1]} 16. Bc4 {[%clk 0:02:30.6]} 16... f6
{[%clk 0:02:19.6]} 17. b4 {[%clk 0:02:23.5]} 17... Nd7 {[%clk 0:02:14.7]} 18. a3
{[%clk 0:02:21]} 18... b5 {[%clk 0:02:14.6]} 19. Bd3 {[%clk 0:02:19]} 19... Be6
{[%clk 0:02:12.3]} 20. Kb2 {[%clk 0:02:17.8]} 20... Kc8 {[%clk 0:02:10.2]} 21.
Rhe1 {[%clk 0:02:17.4]} 21... Bf7 {[%clk 0:02:09.2]} 22. Bf5 {[%clk 0:02:16.7]}
22... g6 {[%clk 0:02:08.6]} 23. Bxd7+ {[%clk 0:02:14.6]} 23... Kxd7 {[%clk
0:02:08]} 24. Ne4 {[%clk 0:02:15.5]} 24... f5 {[%clk 0:02:02.7]} 25. Nc5+ {[%clk
0:02:07.2]} 25... Kc8 {[%clk 0:02:02]} 26. Nd3 {[%clk 0:01:59.9]} 26... Kb7
{[%clk 0:01:57.1]} 27. f4 {[%clk 0:01:58.9]} 27... Bd5 {[%clk 0:01:49.4]} 28. g3
{[%clk 0:01:57.9]} 28... Ra8 {[%clk 0:01:31.8]} 29. Nc5+ {[%clk 0:01:54.6]}
29... Kb6 {[%clk 0:01:28.7]} 30. Nd7+ {[%clk 0:01:43.6]} 30... Kb7 {[%clk
0:01:28.4]} 31. Ne5 {[%clk 0:01:33.5]} 31... a5 {[%clk 0:01:25.8]} 32. c3 {[%clk
0:01:33.7]} 32... axb4 {[%clk 0:01:11.5]} 33. axb4 {[%clk 0:01:33.3]} 33... Ra2+
{[%clk 0:01:09.9]} 34. Kb1 {[%clk 0:01:32.1]} 34... Rxh2 {[%clk 0:01:08.3]} 35.
g4 {[%clk 0:01:13.3]} 35... fxg4 {[%clk 0:00:54]} 36. Nxg4 {[%clk 0:01:09.3]}
36... Rh4 {[%clk 0:00:52.8]} 37. Nf6 {[%clk 0:01:07]} 37... Bb3 {[%clk
0:00:44.1]} 38. Rxd6 {[%clk 0:01:03.9]} 38... cxd6 {[%clk 0:00:41.8]} 39. Re7+
{[%clk 0:01:04.8]} 39... Kb6 {[%clk 0:00:39]} 40. Nd7+ {[%clk 0:01:04.2]} 40...
Kc7 {[%clk 0:00:36.7]} 41. Nc5+ {[%clk 0:01:03.2]} 41... Kd8 {[%clk 0:00:34.3]}
42. Rd7+ {[%clk 0:00:59.1]} 42... Ke8 {[%clk 0:00:31.5]} 43. Rxd6 {[%clk
0:01:00]} 43... Bd5 {[%clk 0:00:29.9]} 44. f5 {[%clk 0:00:55.4]} 44... gxf5
{[%clk 0:00:29.1]} 45. Rf6 {[%clk 0:00:55.7]} 45... f4 {[%clk 0:00:28.3]} 46.
Kc1 {[%clk 0:00:51.1]} 46... f3 {[%clk 0:00:28.4]} 47. Nd3 {[%clk 0:00:49.1]}
47... Ke7 {[%clk 0:00:23.6]} 48. Rf5 {[%clk 0:00:46.3]} 48... h5 {[%clk
0:00:18.3]} 49. Kd2 {[%clk 0:00:39.1]} 49... Rh2+ {[%clk 0:00:17.6]} 50. Ke3
{[%clk 0:00:37.5]} 50... Re2+ {[%clk 0:00:18.2]} 51. Kd4 {[%clk 0:00:37.2]}
51... Re4+ {[%clk 0:00:18.1]} 52. Kc5 {[%clk 0:00:37.5]} 52... Rc4+ {[%clk
0:00:18.6]} 53. Kb6 {[%clk 0:00:37.4]} 53... Rxc3 {[%clk 0:00:19.3]} 54. Nc5
{[%clk 0:00:29.6]} 54... Rc2 {[%clk 0:00:14.3]} 55. Kc7 {[%clk 0:00:29.3]} 55...
f2 {[%clk 0:00:13.7]} 56. Nd3 {[%clk 0:00:24.9]} 56... Be4 {[%clk 0:00:06.1]}
57. Re5+ {[%clk 0:00:24.9]} 57... Kf6 {[%clk 0:00:06.6]} 58. Rxe4 {[%clk
0:00:22.5]} 58... f1=Q {[%clk 0:00:06.3]} 59. Rf4+ {[%clk 0:00:23.4]} 59...
Qxf4+ {[%clk 0:00:06.8]} 60. Nxf4 {[%clk 0:00:24.3]} 60... h4 {[%clk 0:00:06.6]}
61. Kd6 {[%clk 0:00:19.9]} 61... Kg5 {[%clk 0:00:05.7]} 62. Ne6+ {[%clk
0:00:19.8]} 62... Kg4 {[%clk 0:00:06]} 63. Nd4 {[%clk 0:00:20.3]} 63... Rd2
{[%clk 0:00:06.4]} 64. Ke5 {[%clk 0:00:20.8]} 64... Rxd4 {[%clk 0:00:07.3]} 65.
Kxd4 {[%clk 0:00:21.7]} 65... h3 {[%clk 0:00:08.2]} 66. Kc5 {[%clk 0:00:22.6]}
66... h2 {[%clk 0:00:08.8]} 67. Kxc6 {[%clk 0:00:23.3]} 67... h1=Q+ {[%clk
0:00:09.5]} 68. Kxb5 {[%clk 0:00:24.2]} 68... Qb7+ {[%clk 0:00:10.1]} 69. Kc5
{[%clk 0:00:25.1]} 69... Kf5 {[%clk 0:00:10.7]} 70. b5 {[%clk 0:00:26]} 70...
Ke6 {[%clk 0:00:11.6]} 71. b6 {[%clk 0:00:26.5]} 71... Kd7 {[%clk 0:00:12]} 72.
Kb5 {[%clk 0:00:27.4]} 72... Kd6 {[%clk 0:00:12.1]} 73. Kc4 {[%clk 0:00:05.4]}
73... Qxb6 {[%clk 0:00:11.3]} 74. Kd3 {[%clk 0:00:06.3]} 74... Qb4 {[%clk
0:00:11]} 75. Ke2 {[%clk 0:00:07.2]} 75... Qc3 {[%clk 0:00:10.2]} 76. Kf2 {[%clk
0:00:07.2]} 76... Qd3 {[%clk 0:00:10.4]} 77. Kg2 {[%clk 0:00:08.1]} 77... Qe3
{[%clk 0:00:10.6]} 78. Kf1 {[%clk 0:00:08.4]} 78... Qd2 {[%clk 0:00:10.8]} 79.
Kg1 {[%clk 0:00:08.3]} 79... Qe2 {[%clk 0:00:11.3]} 80. Kh1 {[%clk 0:00:05.7]}
80... Kd7 {[%clk 0:00:11.7]} 81. Kg1 {[%clk 0:00:06]} 81... Ke6 {[%clk
0:00:12.4]} 82. Kh1 {[%clk 0:00:06.8]} 82... Kf7 {[%clk 0:00:12.7]} 83. Kg1
{[%clk 0:00:07.3]} 83... Kg6 {[%clk 0:00:13.4]} 84. Kh1 {[%clk 0:00:08.2]} 84...
Kg5 {[%clk 0:00:14]} 85. Kg1 {[%clk 0:00:09.1]} 85... Kh5 {[%clk 0:00:14.1]} 86.
Kh1 {[%clk 0:00:09.6]} 86... Kg4 {[%clk 0:00:14.7]} 87. Kg1 {[%clk 0:00:08.8]}
87... Kg3 {[%clk 0:00:13.9]} 0-1

[Event "Late-Titled-Tuesday-Blitz-June-25-2024"]
[Site "Chess.com"]
[Date "2024.06.25"]
[Round "4"]
[White "prxcess_brownie"]
[Black "RaugintaBulba"]
[Result "0-1"]
[WhiteElo "2217"]
[BlackElo "2452"]
[TimeControl "180+1"]
[EndTime "14:32:38 PDT"]
[Termination "RaugintaBulba won by resignation"]

1. c4 {[%clk 0:03:00.9]} 1... Nf6 {[%clk 0:02:36.2]} 2. Nc3 {[%clk 0:02:59.4]}
2... e5 {[%clk 0:02:36.6]} 3. Nf3 {[%clk 0:02:56.5]} 3... e4 {[%clk 0:02:34.2]}
4. Ng5 {[%clk 0:02:55.1]} 4... c6 {[%clk 0:02:29.5]} 5. Ngxe4 {[%clk 0:02:52.1]}
5... Nxe4 {[%clk 0:02:30.2]} 6. Nxe4 {[%clk 0:02:51.3]} 6... d5 {[%clk
0:02:30.4]} 7. cxd5 {[%clk 0:02:50.6]} 7... cxd5 {[%clk 0:02:31.3]} 8. Ng3
{[%clk 0:02:47.8]} 8... Bd6 {[%clk 0:02:30.1]} 9. d4 {[%clk 0:02:47]} 9... h5
{[%clk 0:02:30.7]} 10. e3 {[%clk 0:02:35.5]} 10... h4 {[%clk 0:02:28.4]} 11. Ne2
{[%clk 0:02:34.4]} 11... Nc6 {[%clk 0:02:26.7]} 12. Nc3 {[%clk 0:02:30.8]} 12...
Qg5 {[%clk 0:02:25.6]} 13. Qf3 {[%clk 0:02:24.4]} 13... Nb4 {[%clk 0:02:08.5]}
14. Kd2 {[%clk 0:02:18.7]} 14... Bg4 {[%clk 0:02:03]} 15. Bb5+ {[%clk
0:02:16.7]} 15... Kf8 {[%clk 0:02:01.8]} 16. Qf4 {[%clk 0:02:07.8]} 16... Bxf4
{[%clk 0:02:00.3]} 17. exf4 {[%clk 0:02:08.7]} 17... Qxf4+ {[%clk 0:02:01.2]}
0-1